bitfinex/quotes_SOLUSD_20250527
["timestamp","ask_amount","ask_price","bid_price","bid_amount"]
[1748325677327,18.43179905,173.85,173.79,12.67945429]
[1748325677635,12.67945429,173.84,173.79,12.67945429]
[1748325678019,12.67945429,173.84,173.78,38.67945429]
[1748325678925,12.67945429,173.84,173.78,12.67945429]
[1748325679127,12.67945429,173.82,173.76,26.0]
[1748325679334,2.30136355,173.81,173.76,38.67945429]
[1748325679521,2.30136355,173.81,173.77,12.67945429]
[1748325679922,8.05477244,173.81,173.76,26.0]
[1748325680146,8.05477244,173.81,173.76,38.67945429]
[1748325680643,8.05477244,173.81,173.76,12.67945429]
[1748325681848,8.05477244,173.81,173.77,12.67945429]
[1748325682041,8.05477244,173.81,173.78,12.67945429]
[1748325682927,2.30136355,173.81,173.8,12.67945429]
[1748325684048,8.05357695,173.84,173.79,12.67945429]
[1748325684254,20.73303124,173.84,173.76,41.7]
[1748325684432,20.73303124,173.84,173.78,12.67945429]
[1748325685962,20.73303124,173.84,173.76,41.7]
[1748325685963,12.67945429,173.82,173.76,54.37945429]
[1748325686126,12.67945429,173.81,173.76,41.7]
[1748325686721,12.67945429,173.8,173.75,12.67945429]
[1748325686922,12.67945429,173.79,173.74,38.67945429]
[1748325687142,12.67945429,173.8,173.75,12.67945429]
[1748325687846,14.98108269,173.79,173.74,26.0]
[1748325688052,14.98108269,173.79,173.74,38.67945429]
[1748325688422,20.73515369,173.79,173.74,12.67945429]
[1748325691853,20.73515369,173.79,173.75,12.67945429]
[1748325691854,8.0556994,173.79,173.75,12.67945429]
[1748325692365,5.754071,173.79,173.75,12.67945429]
[1748325692649,5.754071,173.79,173.73,36.92]
[1748325692650,5.754071,173.79,173.74,12.67945429]
[1748325692825,18.43352529,173.79,173.74,12.67945429]
[1748325693024,12.67945429,173.77,173.69,15.7]
[1748325693251,12.67945429,173.75,173.7,12.67945429]
[1748325693556,12.67945429,173.74,173.68,51.11545429]
[1748325693725,12.67945429,173.73,173.68,36.8]
[1748325693925,12.67945429,173.73,173.68,12.67945429]
[1748325694355,2.30255583,173.72,173.68,12.67945429]
[1748325696640,2.30255583,173.72,173.66,26.0]
[1748325696641,2.30243478,173.73,173.7,12.67945429]
[1748325696839,5.58031787,173.75,173.72,12.67945429]
[1748325697149,3.27812672,173.75,173.74,12.67945429]
[1748325697453,2.30203474,173.76,173.74,12.67945429]
[1748325697756,2.30203474,173.76,173.73,12.67945429]
[1748325699636,2.30176084,173.78,173.73,12.67945429]
[1748325700038,2.30176084,173.78,173.71,26.0]
[1748325700237,2.30176084,173.78,173.74,12.67945429]
[1748325700654,2.30176084,173.78,173.75,12.67945429]
[1748325700851,2.30176084,173.78,173.76,12.67945429]
[1748325701654,2.30149597,173.8,173.76,12.67945429]
[1748325701859,14.98095026,173.8,173.75,12.67945429]
[1748325704959,2.30149597,173.8,173.75,12.67945429]
[1748325705258,14.98095026,173.8,173.75,12.67945429]
[1748325705993,12.67945429,173.79,173.74,12.67945429]
[1748325706334,12.67945429,173.77,173.73,26.0]
[1748325707249,12.67945429,173.77,173.7,51.8387]
[1748325707436,12.67945429,173.76,173.71,12.67945429]
[1748325707642,8.0556994,173.79,173.72,12.67945429]
[1748325707643,12.67945429,173.77,173.72,12.67945429]
[1748325708364,2.30202578,173.76,173.72,12.67945429]
[1748325709357,2.30202578,173.76,173.71,12.67945429]
[1748325709554,12.67945429,173.74,173.69,65.19945429]
[1748325709757,12.67945429,173.73,173.69,36.82]
[1748325709949,12.67945429,173.73,173.68,12.67945429]
[1748325710765,2.30255583,173.72,173.68,12.67945429]
[1748325712046,2.30255583,173.72,173.69,12.67945429]
[1748325713065,2.3024233,173.73,173.69,12.67945429]
[1748325715059,12.67945429,173.71,173.67,26.0]
[1748325715267,12.67945429,173.7,173.67,26.0]
[1748325715767,12.67945429,173.71,173.67,26.0]
[1748325715973,12.67945429,173.72,173.67,38.67945429]
[1748325716155,12.67945429,173.72,173.68,12.67945429]
[1748325716352,2.30255583,173.72,173.69,12.67945429]
[1748325716563,2.30255583,173.72,173.7,12.67945429]
[1748325716757,2.30255583,173.72,173.69,12.67945429]
[1748325717065,2.30255583,173.72,173.68,12.67945429]
[1748325721178,8.05848155,173.73,173.69,12.67945429]
[1748325721387,8.05848155,173.73,173.64,36.82]
[1748325721388,20.73793584,173.73,173.64,36.82]
[1748325721685,20.73793584,173.73,173.69,12.67945429]
[1748325721686,8.05848155,173.73,173.69,12.67945429]
[1748325726092,12.67945429,173.72,173.67,12.67945429]
[1748325726878,20.73793584,173.73,173.68,12.67945429]
[1748325727260,2.30229077,173.74,173.7,12.67945429]
[1748325727565,2.30229077,173.74,173.73,12.67945429]
[1748325728379,3.27812672,173.75,173.73,12.67945429]
[1748325728676,3.27812672,173.75,173.68,41.7]
[1748325728677,9.68424384,173.77,173.74,12.67945429]
[1748325728857,9.68424384,173.77,173.76,12.67945429]
[1748325729052,7.38231529,173.77,173.76,12.67945429]
[1748325729674,7.38231529,173.77,173.76,38.67945429]
[1748325729979,2.30123115,173.82,173.76,38.67945429]
[1748325730178,2.30123115,173.82,173.76,26.0]
[1748325730380,12.67945429,173.81,173.76,12.67945429]
[1748325730577,12.67945429,173.81,173.75,34.52]
[1748325730578,12.67945429,173.81,173.75,47.19945429]
[1748325730759,12.67945429,173.81,173.76,12.67945429]
[1748325731284,20.73376333,173.82,173.77,12.67945429]
[1748325731456,20.73376333,173.82,173.8,12.67945429]
[1748325731457,2.30123115,173.82,173.8,12.67945429]
[1748325731773,5.57935787,173.82,173.81,12.67945429]
[1748325733188,2.30123115,173.82,173.81,12.67945429]
[1748325734755,8.05295378,173.85,173.81,12.67945429]
[1748325735790,8.05295378,173.85,173.76,68.55499104]
[1748325735973,8.05295378,173.85,173.81,12.67945429]
[1748325736677,12.67945429,173.82,173.76,78.5]
[1748325736886,12.67945429,173.82,173.77,12.67945429]
[1748325737391,12.67945429,173.82,173.76,49.47945429]
[1748325737573,18.64964886,173.84,173.77,12.67945429]
[1748325737775,12.67945429,173.82,173.77,12.67945429]
[1748325737978,12.67945429,173.82,173.76,49.47945429]
[1748325738488,12.67945429,173.8,173.74,43.3633]
[1748325738703,2.3016284,173.79,173.75,12.67945429]
[1748325739167,2.3016284,173.79,173.74,41.7]
[1748325739368,2.3016284,173.79,173.75,12.67945429]
[1748325740395,2.3016284,173.79,173.74,41.7]
[1748325740592,2.3016284,173.79,173.75,12.67945429]
[1748325741889,2.3016284,173.79,173.76,12.67945429]
[1748325743086,14.98108269,173.79,173.72,15.7]
[1748325743290,12.67945429,173.78,173.73,12.67945429]
[1748325743704,12.67945429,173.77,173.72,28.37945429]
[1748325743990,8.0556994,173.79,173.66,36.78]
[1748325743991,12.67945429,173.74,173.66,36.78]
[1748325744171,12.67945429,173.73,173.68,12.67945429]
[1748325744990,12.67945429,173.74,173.66,36.78]
[1748325745198,12.67945429,173.72,173.67,12.67945429]
[1748325745373,12.67945429,173.73,173.68,12.67945429]
[1748325745774,12.67945429,173.74,173.7,12.67945429]
[1748325746095,12.67945429,173.74,173.69,12.67945429]
[1748325746478,3.27812672,173.75,173.69,12.67945429]
[1748325746780,12.67945429,173.74,173.69,12.67945429]
[1748325747103,2.3024233,173.73,173.68,12.67945429]
[1748325747601,20.73793584,173.73,173.68,12.67945429]
[1748325748773,20.73793584,173.73,173.67,12.67945429]
[1748325750110,20.73793584,173.73,173.66,62.78]
[1748325750284,20.73793584,173.73,173.68,12.67945429]
[1748325750494,20.73793584,173.73,173.66,62.78]
[1748325750699,20.73793584,173.73,173.68,12.67945429]
[1748325751391,8.05848155,173.73,173.69,12.67945429]
[1748325751709,2.3024233,173.73,173.69,12.67945429]
[1748325752186,2.3024233,173.73,173.7,12.67945429]
[1748325752791,2.30229077,173.74,173.7,12.67945429]
[1748325753095,2.30229077,173.74,173.69,26.0]
[1748325753096,2.30229077,173.74,173.72,12.67945429]
[1748325753294,2.30229077,173.74,173.73,12.67945429]
[1748325753795,2.3018933,173.77,173.73,12.67945429]
[1748325753993,2.3018933,173.77,173.74,12.67945429]
[1748325754813,8.05616295,173.78,173.74,12.67945429]
[1748325755009,20.73561724,173.78,173.73,12.67945429]
[1748325755211,20.73561724,173.78,173.69,76.22]
[1748325755509,8.05616295,173.78,173.73,12.67945429]
[1748325755685,8.05616295,173.78,173.74,12.67945429]
[1748325756594,2.30176084,173.78,173.75,12.67945429]
[1748325756812,15.95758101,173.8,173.74,26.0]
[1748325756813,2.3016284,173.79,173.74,26.0]
[1748325756978,2.3016284,173.79,173.77,12.67945429]
[1748325757181,2.3016284,173.79,173.78,12.67945429]
[1748325758689,2.30123115,173.82,173.78,12.67945429]
[1748325759694,2.30123115,173.82,173.79,12.67945429]
[1748325760616,2.3009664,173.84,173.81,12.67945429]
[1748325761920,2.3009664,173.84,173.83,12.67945429]
[1748325762339,3.27812672,173.85,173.83,12.67945429]
[1748325762518,3.27812672,173.85,173.84,12.67945429]
[1748325763100,2.30030479,173.89,173.84,12.67945429]
[1748325763404,2.30030479,173.89,173.86,12.67945429]
[1748325764531,2.30019763,173.9,173.88,12.67945429]
[1748325764826,5.57819734,173.91,173.85,26.0]
[1748325765010,12.67945429,173.88,173.83,12.67945429]
[1748325765325,12.67945429,173.86,173.81,12.67945429]
[1748325765703,12.67945429,173.87,173.82,12.67945429]
[1748325766230,12.67945429,173.86,173.81,12.67945429]
[1748325766733,2.30083405,173.85,173.81,12.67945429]
[1748325766904,2.30083405,173.85,173.82,12.67945429]
[1748325769439,2.30070171,173.86,173.82,12.67945429]
[1748325770135,8.05245599,173.86,173.81,12.67945429]
[1748325770631,20.73191028,173.86,173.81,12.67945429]
[1748325771007,5.75175428,173.86,173.82,12.67945429]
[1748325771931,12.67945429,173.87,173.82,12.67945429]
[1748325772135,14.97989137,173.88,173.83,12.67945429]
[1748325772315,2.30043708,173.88,173.84,12.67945429]
[1748325773221,8.05124301,173.89,173.84,12.67945429]
[1748325773437,2.30030479,173.89,173.86,12.67945429]
[1748325773740,2.30030479,173.89,173.87,12.67945429]
[1748325774612,2.30030479,173.89,173.86,12.67945429]
[1748325775332,8.05076397,173.9,173.86,12.67945429]
[1748325775838,2.30017251,173.9,173.87,12.67945429]
[1748325776008,2.30017251,173.9,173.86,12.67945429]
[1748325777035,8.05060379,173.9,173.83,76.2]
[1748325777214,20.73005808,173.9,173.85,12.67945429]
[1748325777536,19.55146635,173.9,173.83,15.7]
[1748325777730,12.67945429,173.86,173.83,15.7]
[1748325778111,12.67945429,173.86,173.81,12.67945429]
[1748325778841,19.55146635,173.9,173.81,12.67945429]
[1748325779039,12.67945429,173.87,173.82,12.67945429]
[1748325779714,2.30070171,173.86,173.81,28.37945429]
[1748325779937,14.980156,173.86,173.81,28.37945429]
[1748325781630,2.30070171,173.86,173.82,12.67945429]
[1748325782940,14.980156,173.86,173.81,15.7]
[1748325783243,20.73191028,173.86,173.81,28.37945429]
[1748325783440,12.67945429,173.85,173.81,15.7]
[1748325783824,2.30043708,173.88,173.84,12.67945429]
[1748325784016,2.30043708,173.88,173.87,12.67945429]
[1748325784541,2.299908,173.92,173.87,12.67945429]
[1748325784731,2.299908,173.92,173.89,12.67945429]
[1748325785539,2.29977577,173.93,173.89,12.67945429]
[1748325785743,2.29977577,173.93,173.91,12.67945429]
[1748325787744,8.04845236,173.95,173.91,12.67945429]
[1748325788131,20.72790665,173.95,173.9,12.67945429]
[1748325788446,12.67945429,173.94,173.89,12.67945429]
[1748325789744,12.67945429,173.93,173.87,27.5597]
[1748325790037,12.67945429,173.93,173.88,12.67945429]
[1748325790830,16.38178569,173.95,173.88,12.67945429]
[1748325791128,12.67945429,173.93,173.88,12.67945429]
[1748325791643,20.72820672,173.94,173.89,12.67945429]
[1748325793552,8.04875243,173.94,173.89,12.67945429]
[1748325793943,20.72820672,173.94,173.89,12.67945429]
[1748325795845,20.72820672,173.94,173.87,17.2597]
[1748325796158,8.049678,173.92,173.87,17.2597]
[1748325796336,20.72913229,173.92,173.88,12.67945429]
[1748325796852,8.049678,173.92,173.88,12.67945429]
[1748325801157,20.72913229,173.92,173.88,12.67945429]
[1748325802355,8.049678,173.92,173.88,12.67945429]
[1748325804764,8.049678,173.92,173.87,15.7]
[1748325804937,20.72913229,173.92,173.87,15.7]
[1748325805272,8.049678,173.92,173.88,12.67945429]
[1748325805559,2.299908,173.92,173.89,12.67945429]
[1748325805760,2.299908,173.92,173.91,12.67945429]
[1748325806278,5.57493267,173.94,173.91,12.67945429]
[1748325806571,5.57493267,173.94,173.92,12.67945429]
[1748325807261,2.299728,173.94,173.92,12.67945429]
[1748325807563,13.90806744,173.95,173.93,12.67945429]
[1748325808142,10.63286277,173.95,173.93,12.67945429]
[1748325812341,10.63286277,173.95,173.92,12.67945429]
[1748325813567,10.63286277,173.95,173.91,15.7]
[1748325813883,10.63286277,173.95,173.91,12.67945429]
[1748325814372,16.38164115,173.95,173.91,12.67945429]
[1748325814664,29.06109544,173.95,173.91,12.67945429]
[1748325815268,16.38164115,173.95,173.91,12.67945429]
[1748325815773,16.38164115,173.95,173.9,50.2]
[1748325815952,16.38164115,173.95,173.91,12.67945429]
[1748325816468,10.63286277,173.95,173.91,12.67945429]
[1748325816670,10.63286277,173.95,173.93,12.67945429]
[1748325821678,8.33333333,173.95,173.94,12.67945429]
[1748325827267,10.63284468,173.95,173.94,12.67945429]
[1748325828394,8.33333333,173.95,173.94,12.67945429]
[1748325829396,8.33333333,173.95,173.94,28.37945429]
[1748325831263,8.33333333,173.95,173.94,54.37945429]
[1748325831464,8.33333333,173.95,173.94,52.77821203]
[1748325831892,8.33333333,173.95,173.94,47.02910315]
[1748325832212,8.33333333,173.95,173.94,34.34964886]
[1748325832368,8.33333333,173.95,173.94,28.37945429]
[1748325835305,8.33333333,173.95,173.94,15.7]
[1748325835587,8.33333333,173.95,173.94,28.37945429]
[1748325837788,8.33333333,173.95,173.94,52.77821203]
[1748325838983,8.33333333,173.95,173.94,47.02910315]
[1748325840990,8.33333333,173.95,173.94,52.77821203]
[1748325841584,8.33333333,173.95,173.94,47.02910315]
[1748325841763,8.33333333,173.95,173.94,40.09875774]
[1748325841967,8.33333333,173.95,173.94,52.77821203]
[1748325843877,2.29855939,174.03,173.97,26.0]
[1748325844083,2.29855939,174.03,174.01,12.67945429]
[1748325844800,2.29832222,174.04,174.01,12.67945429]
[1748325846098,2.29819017,174.05,174.01,12.67945429]
[1748325846694,2.29819017,174.05,174.03,12.67945429]
[1748325848273,12.67945429,174.08,174.03,12.67945429]
[1748325848274,2.29792612,174.07,174.03,12.67945429]
[1748325849576,20.72173369,174.08,174.03,12.67945429]
[1748325850302,8.0422794,174.08,174.05,12.67945429]
[1748325850594,2.29779411,174.08,174.05,12.67945429]
[1748325851379,2.29766212,174.09,174.05,12.67945429]
[1748325852180,3.28945187,174.1,174.05,26.0]
[1748325852372,3.28945187,174.1,174.06,18.64964886]
[1748325852592,3.28945187,174.1,174.09,38.67945429]
[1748325852802,4.10418857,174.12,174.09,54.37945429]
[1748325852970,4.10418857,174.12,174.09,41.7]
[1748325853172,4.10418857,174.12,174.11,12.67945429]
[1748325853606,4.10418857,174.12,174.1,18.64964886]
[1748325853783,4.10418857,174.12,174.11,12.67945429]
[1748325853980,2.2967843,174.16,174.11,12.67945429]
[1748325854186,2.29621125,174.2,174.12,26.0]
[1748325854609,8.03673937,174.2,174.17,12.67945429]
[1748325854789,8.03673937,174.2,174.18,12.67945429]
[1748325854976,2.29621125,174.2,174.17,12.67945429]
[1748325855180,2.29621125,174.2,174.16,12.67945429]
[1748325855391,2.29621125,174.2,174.17,12.67945429]
[1748325855604,2.29621125,174.2,174.14,26.0]
[1748325855990,2.29621125,174.2,174.17,12.67945429]
[1748325856190,2.29621125,174.2,174.14,26.0]
[1748325856504,2.29621125,174.2,174.17,12.67945429]
[1748325856687,8.03630698,174.21,174.17,12.67945429]
[1748325856874,8.03630698,174.21,174.14,26.0]
[1748325857076,8.03630698,174.21,174.16,12.67945429]
[1748325857077,12.67945429,174.2,174.16,12.67945429]
[1748325857279,8.03630698,174.21,174.16,12.67945429]
[1748325857478,8.03630698,174.21,174.17,12.67945429]
[1748325857984,8.03630698,174.21,174.18,12.67945429]
[1748325858199,8.03630698,174.21,174.14,26.0]
[1748325858409,20.71576127,174.21,174.17,12.67945429]
[1748325858594,11.32438651,174.24,174.18,12.67945429]
[1748325858902,11.32438651,174.24,174.19,12.67945429]
[1748325859094,24.0038408,174.24,174.19,12.67945429]
[1748325859490,24.0038408,174.24,174.16,34.46]
[1748325859691,12.67945429,174.23,174.18,12.67945429]
[1748325859883,12.67945429,174.22,174.16,34.46]
[1748325860080,8.03493464,174.24,174.16,47.13945429]
[1748325860607,2.29607944,174.21,174.17,12.67945429]
[1748325860801,2.29607944,174.21,174.16,34.46]
[1748325861117,8.03627805,174.21,174.16,34.46]
[1748325861315,8.03627805,174.21,174.17,12.67945429]
[1748325861987,8.03627805,174.21,174.16,34.46]
[1748325862195,8.03627805,174.21,174.18,12.67945429]
[1748325863109,2.29607944,174.21,174.18,12.67945429]
[1748325863680,2.29607944,174.21,174.17,12.67945429]
[1748325864081,2.29607944,174.21,174.17,28.37945429]
[1748325864691,2.29594765,174.22,174.18,12.67945429]
[1748325864892,2.29594765,174.22,174.17,15.7]
[1748325865097,14.97540194,174.22,174.17,28.37945429]
[1748325866314,8.03581678,174.22,174.17,28.37945429]
[1748325866517,20.71527107,174.22,174.17,28.37945429]
[1748325868702,8.03581678,174.22,174.18,12.67945429]
[1748325869012,20.71527107,174.22,174.17,28.37945429]
[1748325869921,20.71527107,174.22,174.17,15.7]
[1748325870214,8.03581678,174.22,174.19,12.67945429]
[1748325870525,2.29594765,174.22,174.2,12.67945429]
[1748325870712,2.29594765,174.22,174.21,12.67945429]
[1748325872227,5.73900318,174.25,174.21,12.67945429]
[1748325872400,5.73900318,174.25,174.22,12.67945429]
[1748325872898,5.73900318,174.25,174.21,12.67945429]
[1748325873095,18.41845747,174.25,174.2,12.67945429]
[1748325873295,5.73900318,174.25,174.2,12.67945429]
[1748325873521,18.41845747,174.25,174.2,12.67945429]
[1748325874420,20.71400983,174.25,174.2,12.67945429]
[1748325875408,12.67945429,174.24,174.18,34.44]
[1748325875716,12.67945429,174.23,174.18,34.44]
[1748325875919,12.67945429,174.23,174.18,47.11945429]
[1748325876312,19.51231737,174.25,174.17,40.04]
[1748325876313,12.67945429,174.22,174.17,40.04]
[1748325876511,2.29621125,174.2,174.17,40.04]
[1748325876811,2.29621125,174.2,174.17,12.67945429]
[1748325877711,2.29621125,174.2,174.18,12.67945429]
[1748325878723,8.03656003,174.21,174.18,12.67945429]
[1748325880821,12.67945429,174.22,174.18,12.67945429]
[1748325881512,12.67945429,174.22,174.15,60.44]
[1748325881513,12.67945429,174.22,174.17,12.67945429]
[1748325881821,12.67945429,174.22,174.17,28.37945429]
[1748325882126,2.29607944,174.21,174.17,28.37945429]
[1748325882938,8.03627805,174.21,174.19,12.67945429]
[1748325884009,8.03443327,174.25,174.2,12.67945429]
[1748325884299,20.71388756,174.25,174.21,12.67945429]
[1748325884709,20.71388756,174.25,174.2,12.67945429]
[1748325886908,20.71388756,174.25,174.18,26.0]
[1748325886909,12.67945429,174.24,174.19,12.67945429]
[1748325887110,12.67945429,174.24,174.19,26.0]
[1748325887417,12.67945429,174.24,174.19,12.67945429]
[1748325887598,12.67945429,174.23,174.18,12.67945429]
[1748325888022,12.67945429,174.24,174.17,26.0]
[1748325888221,12.67945429,174.24,174.19,12.67945429]
[1748325888222,2.29581587,174.23,174.19,12.67945429]
[1748325888830,8.03535555,174.23,174.17,26.0]
[1748325889021,8.03535555,174.23,174.19,12.67945429]
[1748325890035,8.03535555,174.23,174.2,12.67945429]
[1748325890216,5.73953968,174.23,174.2,12.67945429]
[1748325892035,5.73953968,174.23,174.19,12.67945429]
[1748325892543,18.41899397,174.23,174.18,12.67945429]
[1748325893036,12.67945429,174.21,174.17,38.67945429]
[1748325893232,12.67945429,174.21,174.17,54.37945429]
[1748325893739,2.29607944,174.21,174.17,54.37945429]
[1748325893946,2.29555236,174.25,174.2,12.67945429]
[1748325894158,2.29555236,174.25,174.23,12.67945429]
[1748325894449,5.56498853,174.26,174.24,12.67945429]
[1748325894654,5.56498853,174.26,174.21,34.44]
[1748325894950,5.56498853,174.26,174.24,12.67945429]
[1748325895151,2.29544189,174.26,174.24,12.67945429]
[1748325895449,2.29544189,174.26,174.21,34.44]
[1748325895606,14.97489618,174.26,174.21,12.67945429]
[1748325895812,14.97489618,174.26,174.22,12.67945429]
[1748325895813,2.29544189,174.26,174.22,12.67945429]
[1748325896251,2.29544189,174.26,174.2,60.44]
[1748325896453,2.29544189,174.26,174.22,12.67945429]
[1748325896649,14.97489618,174.26,174.22,12.67945429]
[1748325896813,14.97489618,174.26,174.21,12.67945429]
[1748325897352,8.03399347,174.26,174.23,12.67945429]
[1748325897840,3.26954664,174.25,174.23,12.67945429]
[1748325899446,2.29568411,174.24,174.23,12.67945429]
[1748325899646,2.29568411,174.24,174.22,12.67945429]
[1748325900819,2.29568411,174.24,174.23,12.67945429]
[1748325901023,5.56512076,174.25,174.23,12.67945429]
[1748325901320,8.33333333,174.24,174.21,12.67945429]
[1748325901637,8.33333333,174.24,174.22,12.67945429]
[1748325901638,10.62914736,174.24,174.22,12.67945429]
[1748325902012,10.62914736,174.24,174.23,12.67945429]
[1748325902413,8.33333333,174.24,174.23,12.67945429]
[1748325903553,8.33333333,174.24,174.2,34.44]
[1748325903841,8.33333333,174.24,174.23,12.67945429]
[1748325905123,8.33333333,174.24,174.21,18.64964886]
[1748325905434,8.33333333,174.24,174.21,34.34964886]
[1748325905638,8.33333333,174.24,174.23,12.67945429]
[1748325906124,8.33333333,174.24,174.21,34.34964886]
[1748325906324,8.33333333,174.24,174.23,12.67945429]
[1748325908250,8.33333333,174.24,174.23,37.06864283]
[1748325908751,8.33333333,174.24,174.23,24.38918854]
[1748325908918,8.33333333,174.24,174.23,37.06864283]
[1748325909248,8.33333333,174.24,174.23,18.64964886]
[1748325909421,8.33333333,174.24,174.23,38.67945429]
[1748325909747,8.33333333,174.24,174.23,65.74910315]
[1748325909922,8.33333333,174.24,174.23,58.80918854]
[1748325910123,3.26954664,174.34,174.26,26.0]
[1748325910446,3.26954664,174.34,174.31,12.67945429]
[1748325910626,2.29451167,174.33,174.3,12.67945429]
[1748325911228,2.29451167,174.33,174.28,34.42]
[1748325911420,14.97396596,174.33,174.28,34.42]
[1748325911947,2.29436732,174.34,174.28,47.09945429]
[1748325912244,2.29436732,174.34,174.29,12.67945429]
[1748325912544,2.29436732,174.34,174.28,34.42]
[1748325912721,2.29436732,174.34,174.3,12.67945429]
[1748325913221,5.56378054,174.36,174.3,12.67945429]
[1748325913426,12.67945429,174.35,174.3,12.67945429]
[1748325913626,2.2942339,174.36,174.32,12.67945429]
[1748325913932,14.97368819,174.36,174.32,12.67945429]
[1748325914323,14.97368819,174.36,174.28,50.12]
[1748325914524,13.44391448,174.39,174.28,55.85775849]
[1748325914525,2.29395177,174.38,174.28,55.85775849]
[1748325914750,2.29395177,174.38,174.34,12.67945429]
[1748325915337,10.00331467,174.39,174.35,12.67945429]
[1748325915957,2.29371467,174.39,174.37,12.67945429]
[1748325916254,2.29371467,174.39,174.33,34.42]
[1748325916255,14.97303227,174.4,174.33,34.42]
[1748325916457,2.29357798,174.4,174.35,12.67945429]
[1748325916631,14.97303227,174.4,174.35,12.67945429]
[1748325916824,14.97303227,174.4,174.29,18.64964886]
[1748325916825,8.02752293,174.4,174.28,5.73786485]
[1748325917031,12.67945429,174.36,174.31,12.67945429]
[1748325917237,2.29357798,174.4,174.35,12.67945429]
[1748325917442,2.29357798,174.4,174.36,12.67945429]
[1748325917759,2.29357798,174.4,174.37,12.67945429]
[1748325918050,2.29357798,174.4,174.36,12.67945429]
[1748325918240,14.97303227,174.4,174.35,12.67945429]
[1748325918551,14.97303227,174.4,174.33,26.0]
[1748325918742,12.67945429,174.38,174.34,12.67945429]
[1748325919146,2.29357798,174.4,174.36,12.67945429]
[1748325919468,2.29331498,174.42,174.34,34.42]
[1748325919632,2.29331498,174.42,174.38,12.67945429]
[1748325920031,2.29331498,174.42,174.34,34.42]
[1748325920230,2.29331498,174.42,174.38,12.67945429]
[1748325920564,2.29331498,174.42,174.37,12.67945429]
[1748325920730,14.97276927,174.42,174.38,12.67945429]
[1748325920931,2.29331498,174.42,174.37,12.67945429]
[1748325921346,12.67945429,174.41,174.36,12.67945429]
[1748325921858,2.29331498,174.42,174.38,12.67945429]
[1748325922054,2.29331498,174.42,174.39,12.67945429]
[1748325922351,2.29318351,174.43,174.34,34.42]
[1748325922552,12.67945429,174.41,174.34,34.42]
[1748325922735,8.02614229,174.43,174.37,12.67945429]
[1748325923067,2.29318351,174.43,174.38,12.67945429]
[1748325923229,14.9726378,174.43,174.38,12.67945429]
[1748325923764,2.29318351,174.43,174.39,12.67945429]
[1748325924064,2.29278917,174.46,174.4,12.67945429]
[1748325924229,19.10755429,174.48,174.43,12.67945429]
[1748325924431,2.29267884,174.47,174.43,12.67945429]
[1748325924627,12.67945429,174.46,174.41,12.67945429]
[1748325924843,2.29267884,174.47,174.43,12.67945429]
[1748325925359,2.29267884,174.47,174.44,12.67945429]
[1748325925532,2.29267884,174.47,174.4,40.13370499]
[1748325925735,2.29267884,174.47,174.44,12.67945429]
[1748325926134,2.29252636,174.48,174.44,12.67945429]
[1748325926835,2.29213225,174.51,174.47,12.67945429]
[1748325927039,2.29213225,174.51,174.48,12.67945429]
[1748325927654,2.29213225,174.51,174.49,12.67945429]
[1748325927959,2.29173828,174.54,174.5,12.67945429]
[1748325928155,2.29160698,174.55,174.48,26.0]
[1748325928465,2.29160698,174.55,174.52,12.67945429]
[1748325928750,2.29160698,174.55,174.49,18.64964886]
[1748325929129,2.29160698,174.55,174.51,12.67945429]
[1748325929348,12.67945429,174.58,174.53,12.67945429]
[1748325929941,2.29095074,174.6,174.53,12.67945429]
[1748325930348,12.67945429,174.58,174.53,12.67945429]
[1748325930554,8.0183276,174.6,174.49,26.0]
[1748325930755,12.67945429,174.56,174.51,12.67945429]
[1748325930936,12.67945429,174.54,174.5,12.67945429]
[1748325931138,12.67945429,174.53,174.48,47.05945429]
[1748325931454,19.47308132,174.6,174.48,12.67945429]
[1748325931633,12.67945429,174.53,174.49,12.67945429]
[1748325932036,12.67945429,174.53,174.48,12.67945429]
[1748325932228,14.43552998,174.64,174.47,18.64964886]
[1748325932431,12.67945429,174.61,174.51,18.64964886]
[1748325932732,12.67945429,174.59,174.54,12.67945429]
[1748325933458,2.29121319,174.58,174.52,34.38]
[1748325933636,2.29121319,174.58,174.51,12.67945429]
[1748325933836,12.67945429,174.55,174.5,47.05945429]
[1748325934037,12.67945429,174.56,174.51,12.67945429]
[1748325934231,8.01924618,174.58,174.5,34.38]
[1748325934434,12.67945429,174.57,174.52,12.67945429]
[1748325934760,12.67945429,174.56,174.51,12.67945429]
[1748325935260,12.67945429,174.56,174.49,34.38]
[1748325935445,8.01740922,174.62,174.51,12.67945429]
[1748325935757,12.67945429,174.56,174.51,12.67945429]
[1748325935941,8.01740922,174.62,174.51,12.67945429]
[1748325936136,12.67945429,174.56,174.51,12.67945429]
[1748325936551,8.01740922,174.62,174.55,12.67945429]
[1748325936735,20.69686351,174.62,174.52,26.0]
[1748325936935,12.67945429,174.61,174.53,26.0]